[Event "*** Titled Tuesday Blitz"]
[Site "Chess.com"]
[Date "2019.04.02"]
[Round "10"]
[White "Denis_Palkovich"]
[Black "AsaHoffmann"]
[Result "0-1"]
[WhiteElo "2223"]
[BlackElo "2198"]
[TimeControl "180+2"]
[EndTime "16:19:35 PDT"]
[Termination "AsaHoffmann won by resignation"]

1. d4 {[%clk 0:03:01.9]} 1... Nf6 {[%clk 0:02:59.6]} 2. Bf4 {[%clk 0:03:01.9]}
2... c5 {[%clk 0:02:56.9]} 3. e3 {[%clk 0:03:02.5]} 3... b6 {[%clk 0:02:57.3]}
4. Nf3 {[%clk 0:03:00.7]} 4... Bb7 {[%clk 0:02:57]} 5. Be2 {[%clk 0:02:59.6]}
5... d6 {[%clk 0:02:56.6]} 6. O-O {[%clk 0:02:59.7]} 6... Nbd7 {[%clk
0:02:57.2]} 7. c4 {[%clk 0:02:56.8]} 7... g6 {[%clk 0:02:57.5]} 8. h3 {[%clk
0:02:54]} 8... Bg7 {[%clk 0:02:57.8]} 9. Nc3 {[%clk 0:02:54.6]} 9... O-O {[%clk
0:02:57.6]} 10. d5 {[%clk 0:02:55.2]} 10... a6 {[%clk 0:02:54.4]} 11. a4 {[%clk
0:02:55.5]} 11... Qc7 {[%clk 0:02:47.8]} 12. e4 {[%clk 0:02:55.2]} 12... Ne8
{[%clk 0:02:46.6]} 13. Bd3 {[%clk 0:02:52.1]} 13... Ne5 {[%clk 0:02:46.7]} 14.
Nxe5 {[%clk 0:02:51.4]} 14... dxe5 {[%clk 0:02:47.2]} 15. Bg3 {[%clk 0:02:50]}
15... Nd6 {[%clk 0:02:47.2]} 16. f4 {[%clk 0:02:48.4]} 16... exf4 {[%clk
0:02:46.5]} 17. Bxf4 {[%clk 0:02:47.7]} 17... Bd4+ {[%clk 0:02:46.5]} 18. Kh1
{[%clk 0:02:47]} 18... f6 {[%clk 0:02:47]} 19. Qe2 {[%clk 0:02:25.3]} 19... Qd7
{[%clk 0:02:45.5]} 20. e5 {[%clk 0:02:24]} 20... fxe5 {[%clk 0:02:41.4]} 21.
Bxe5 {[%clk 0:02:22.9]} 21... Bxe5 {[%clk 0:02:35]} 22. Qxe5 {[%clk 0:02:23.7]}
22... Rxf1+ {[%clk 0:02:33.7]} 23. Rxf1 {[%clk 0:02:23.1]} 23... Re8 {[%clk
0:02:23.6]} 24. Re1 {[%clk 0:01:36.4]} 24... Bc8 {[%clk 0:02:17.9]} 25. Ne4
{[%clk 0:01:34.2]} 25... Nxe4 {[%clk 0:02:07]} 26. Bxe4 {[%clk 0:01:35.2]} 26...
Qd6 {[%clk 0:02:04.2]} 27. Bf3 {[%clk 0:01:12.7]} 27... Qxe5 {[%clk 0:02:02.1]}
28. Rxe5 {[%clk 0:01:13.7]} 28... Kf8 {[%clk 0:02:01.9]} 29. Bg4 {[%clk
0:01:07.3]} 29... Bxg4 {[%clk 0:01:58.6]} 30. hxg4 {[%clk 0:01:09.1]} 30... Rb8
{[%clk 0:01:52.4]} 31. Re6 {[%clk 0:00:47.9]} 31... b5 {[%clk 0:01:52.1]} 32.
Rxa6 {[%clk 0:00:23.1]} 32... bxc4 {[%clk 0:01:52]} 33. Rc6 {[%clk 0:00:16.9]}
33... Rxb2 {[%clk 0:01:49.2]} 34. Rxc5 {[%clk 0:00:17.5]} 34... Rb4 {[%clk
0:01:42.9]} 35. a5 {[%clk 0:00:15.5]} 35... Ra4 {[%clk 0:01:43.5]} 36. Kg1
{[%clk 0:00:11.2]} 36... Kf7 {[%clk 0:01:42.7]} 37. g5 {[%clk 0:00:11.7]} 37...
c3 {[%clk 0:01:41.4]} 38. Rxc3 {[%clk 0:00:08.1]} 38... Rxa5 {[%clk 0:01:41.7]}
39. Rf3+ {[%clk 0:00:09.5]} 39... Ke8 {[%clk 0:01:41.3]} 40. Rd3 {[%clk
0:00:10.9]} 40... Kd7 {[%clk 0:01:41.8]} 41. Kf2 {[%clk 0:00:11]} 41... Kd6
{[%clk 0:01:42.5]} 42. Kf3 {[%clk 0:00:09.2]} 42... Rxd5 {[%clk 0:01:42.8]} 43.
Ra3 {[%clk 0:00:04.8]} 43... Rxg5 {[%clk 0:01:42.1]} 44. g4 {[%clk 0:00:06.3]}
44... Rc5 {[%clk 0:01:40.8]} 45. Kf4 {[%clk 0:00:02.1]} 45... h5 {[%clk
0:01:40.6]} 46. gxh5 {[%clk 0:00:02]} 46... gxh5 {[%clk 0:01:41.4]} 47. Ra6+
{[%clk 0:00:02.6]} 47... Rc6 {[%clk 0:01:41]} 48. Ra5 {[%clk 0:00:02.9]} 48...
Rc5 {[%clk 0:01:41.4]} 49. Ra6+ {[%clk 0:00:03.4]} 49... Kd5 {[%clk 0:01:42.1]}
50. Rh6 {[%clk 0:00:04.4]} 50... Kd4 {[%clk 0:01:41.8]} 51. Re6 {[%clk
0:00:05.4]} 51... Rc7 {[%clk 0:01:38.1]} 52. Kg5 {[%clk 0:00:06.5]} 52... Kd5
{[%clk 0:01:37.5]} 53. Re1 {[%clk 0:00:07]} 53... e5 {[%clk 0:01:37.9]} 54. Kxh5
{[%clk 0:00:08]} 54... Rg7 {[%clk 0:01:37.9]} 55. Rd1+ {[%clk 0:00:07.3]} 55...
Ke4 {[%clk 0:01:36.8]} 56. Re1+ {[%clk 0:00:08.4]} 56... Kf4 {[%clk 0:01:37.3]}
57. Rf1+ {[%clk 0:00:09.5]} 57... Ke3 {[%clk 0:01:33.5]} 58. Re1+ {[%clk
0:00:10.9]} 58... Kd4 {[%clk 0:01:33.6]} 59. Rd1+ {[%clk 0:00:12]} 59... Ke4
{[%clk 0:01:34.5]} 60. Re1+ {[%clk 0:00:13]} 60... Kf5 {[%clk 0:01:35]} 61. Rf1+
{[%clk 0:00:14]} 61... Ke6 {[%clk 0:01:35.4]} 62. Kh4 {[%clk 0:00:15.5]} 62...
e4 {[%clk 0:01:35.8]} 63. Kh3 {[%clk 0:00:12.8]} 63... Ke5 {[%clk 0:01:35.1]}
64. Rf2 {[%clk 0:00:10.3]} 64... e3 {[%clk 0:01:35.4]} 65. Rg2 {[%clk 0:00:11]}
65... Rxg2 {[%clk 0:01:28.3]} 66. Kxg2 {[%clk 0:00:12.1]} 66... Ke4 {[%clk
0:01:29.1]} 67. Kg1 {[%clk 0:00:12.2]} 67... Kd3 {[%clk 0:01:28.4]} 68. Kf1
{[%clk 0:00:12.4]} 68... Kd2 {[%clk 0:01:28.1]} 0-1

[Event "*** Titled Tuesday Blitz"]
[Site "Chess.com"]
[Date "2019.04.02"]
[Round "10"]
[White "Satscho"]
[Black "nutibara"]
[Result "1-0"]
[WhiteElo "2328"]
[BlackElo "2359"]
[TimeControl "180+2"]
[EndTime "16:19:35 PDT"]
[Termination "Satscho won by checkmate"]

1. e4 {[%clk 0:03:01.9]} 1... c5 {[%clk 0:03:00.6]} 2. Nf3 {[%clk 0:03:02.8]}
2... Nc6 {[%clk 0:03:01.4]} 3. Bb5 {[%clk 0:03:03.4]} 3... g6 {[%clk 0:03:02.2]}
4. Bxc6 {[%clk 0:03:03.9]} 4... bxc6 {[%clk 0:03:04.1]} 5. c3 {[%clk 0:03:03.8]}
5... Bg7 {[%clk 0:02:59.9]} 6. O-O {[%clk 0:03:04.6]} 6... Nf6 {[%clk 0:02:59]}
7. Re1 {[%clk 0:03:05.7]} 7... O-O {[%clk 0:02:59.4]} 8. d4 {[%clk 0:03:06.8]}
8... d5 {[%clk 0:03:00.5]} 9. e5 {[%clk 0:03:00.4]} 9... Ne4 {[%clk 0:03:01.4]}
10. Nbd2 {[%clk 0:03:01.9]} 10... Bf5 {[%clk 0:03:01.4]} 11. dxc5 {[%clk
0:02:51.8]} 11... Nxc5 {[%clk 0:02:57.5]} 12. Nb3 {[%clk 0:02:50.4]} 12... Ne4
{[%clk 0:02:36.7]} 13. Nfd4 {[%clk 0:02:46.5]} 13... Bxe5 {[%clk 0:01:39.4]} 14.
Nxc6 {[%clk 0:02:41.5]} 14... Bxh2+ {[%clk 0:01:34.3]} 15. Kxh2 {[%clk
0:02:25.6]} 15... Qd6+ {[%clk 0:01:28.5]} 16. g3 {[%clk 0:02:23]} 16... Qxc6
{[%clk 0:01:17.6]} 17. Nd4 {[%clk 0:02:21.9]} 17... Qd7 {[%clk 0:01:13.4]} 18.
Be3 {[%clk 0:01:44.4]} 18... e5 {[%clk 0:01:08.5]} 19. Nxf5 {[%clk 0:01:44.6]}
19... Qxf5 {[%clk 0:01:03.6]} 20. Kg2 {[%clk 0:01:35.6]} 20... Rfd8 {[%clk
0:00:56.6]} 21. Qf3 {[%clk 0:01:30.5]} 21... Qxf3+ {[%clk 0:00:48.4]} 22. Kxf3
{[%clk 0:01:32.4]} 22... h5 {[%clk 0:00:43.9]} 23. Rad1 {[%clk 0:01:29.5]} 23...
f5 {[%clk 0:00:38.5]} 24. Kg2 {[%clk 0:01:14.6]} 24... Kf7 {[%clk 0:00:33.8]}
25. f3 {[%clk 0:01:15.4]} 25... Nf6 {[%clk 0:00:27.3]} 26. Bg5 {[%clk
0:01:11.1]} 26... e4 {[%clk 0:00:27.7]} 27. Rd4 {[%clk 0:01:03.9]} 27... Rd7
{[%clk 0:00:23.4]} 28. Red1 {[%clk 0:01:00.2]} 28... exf3+ {[%clk 0:00:19.1]}
29. Kxf3 {[%clk 0:01:01.1]} 29... Ne4 {[%clk 0:00:20.7]} 30. Bc1 {[%clk
0:00:55.7]} 30... Ke6 {[%clk 0:00:19.5]} 31. Be3 {[%clk 0:00:47.1]} 31... Rad8
{[%clk 0:00:20.2]} 32. Ra4 {[%clk 0:00:47.9]} 32... Ra8 {[%clk 0:00:14.4]} 33.
Ra6+ {[%clk 0:00:42.3]} 33... Rd6 {[%clk 0:00:15.5]} 34. Ra5 {[%clk 0:00:35.5]}
34... a6 {[%clk 0:00:15.1]} 35. Bf4 {[%clk 0:00:31.2]} 35... Rd7 {[%clk
0:00:14.2]} 36. c4 {[%clk 0:00:31.5]} 36... d4 {[%clk 0:00:09.1]} 37. Re5+
{[%clk 0:00:25.6]} 37... Kf6 {[%clk 0:00:10.1]} 38. Rd5 {[%clk 0:00:24.4]} 38...
Rxd5 {[%clk 0:00:07.5]} 39. cxd5 {[%clk 0:00:26.3]} 39... g5 {[%clk 0:00:08.5]}
40. Bc7 {[%clk 0:00:27.2]} 40... Rc8 {[%clk 0:00:07.1]} 41. d6 {[%clk
0:00:26.2]} 41... g4+ {[%clk 0:00:07.5]} 42. Kf4 {[%clk 0:00:21.1]} 42... Nf2
{[%clk 0:00:07.4]} 43. Rxd4 {[%clk 0:00:21.1]} 43... Nh3+ {[%clk 0:00:06.1]} 44.
Ke3 {[%clk 0:00:22.4]} 44... f4+ {[%clk 0:00:06]} 45. gxf4 {[%clk 0:00:23.4]}
45... Re8+ {[%clk 0:00:06.4]} 46. Kd2 {[%clk 0:00:22.4]} 46... g3 {[%clk
0:00:04]} 47. d7 {[%clk 0:00:23.8]} 47... Rf8 {[%clk 0:00:04.4]} 48. d8=Q+
{[%clk 0:00:24.7]} 48... Rxd8 {[%clk 0:00:05.5]} 49. Bxd8+ {[%clk 0:00:26.3]}
49... Kf5 {[%clk 0:00:06.8]} 50. Rd5+ {[%clk 0:00:21]} 50... Kg4 {[%clk
0:00:07]} 51. Bb6 {[%clk 0:00:18.2]} 51... h4 {[%clk 0:00:06.8]} 52. f5 {[%clk
0:00:17.5]} 52... Ng5 {[%clk 0:00:06.1]} 53. f6 {[%clk 0:00:18.5]} 53... Ne4+
{[%clk 0:00:06.9]} 54. Ke2 {[%clk 0:00:19.2]} 54... Nxf6 {[%clk 0:00:08]} 55.
Rd4+ {[%clk 0:00:19.8]} 55... Kh3 {[%clk 0:00:08.6]} 56. Kf3 {[%clk 0:00:21.4]}
56... Nd7 {[%clk 0:00:08.2]} 57. Rxd7 {[%clk 0:00:22]} 57... Kh2 {[%clk
0:00:07.7]} 58. Rd1 {[%clk 0:00:20.9]} 58... h3 {[%clk 0:00:07.4]} 59. Bc7
{[%clk 0:00:21.9]} 59... a5 {[%clk 0:00:06]} 60. Bxg3# {[%clk 0:00:23.1]} 1-0

[Event "*** Titled Tuesday Blitz"]
[Site "Chess.com"]
[Date "2019.04.02"]
[Round "10"]
[White "NemtsevIgor"]
[Black "GCamachoMartinez"]
[Result "1/2-1/2"]
[WhiteElo "2320"]
[BlackElo "2344"]
[TimeControl "180+2"]
[EndTime "16:19:37 PDT"]
[Termination "Game drawn by agreement"]

1. d4 {[%clk 0:03:01.9]} 1... Nf6 {[%clk 0:02:58.1]} 2. Bf4 {[%clk 0:03:02.1]}
2... g6 {[%clk 0:02:51.4]} 3. Nf3 {[%clk 0:03:00.9]} 3... Bg7 {[%clk 0:02:51.6]}
4. e3 {[%clk 0:03:02.2]} 4... d6 {[%clk 0:02:52.4]} 5. Be2 {[%clk 0:03:02.3]}
5... O-O {[%clk 0:02:53]} 6. O-O {[%clk 0:03:03.2]} 6... Nbd7 {[%clk 0:02:54.1]}
7. h3 {[%clk 0:03:02.4]} 7... c5 {[%clk 0:02:54.4]} 8. c3 {[%clk 0:03:02.4]}
8... a6 {[%clk 0:02:51.9]} 9. Nbd2 {[%clk 0:03:02.5]} 9... b5 {[%clk 0:02:49.7]}
10. a4 {[%clk 0:03:03.1]} 10... Rb8 {[%clk 0:02:50.3]} 11. axb5 {[%clk
0:03:03.1]} 11... axb5 {[%clk 0:02:52.1]} 12. Bh2 {[%clk 0:02:56.6]} 12... Bb7
{[%clk 0:02:50.8]} 13. Re1 {[%clk 0:02:39.3]} 13... c4 {[%clk 0:02:48.3]} 14.
Qc2 {[%clk 0:02:37.2]} 14... Qc7 {[%clk 0:02:40.8]} 15. e4 {[%clk 0:02:35]}
15... e5 {[%clk 0:02:41.7]} 16. Bf1 {[%clk 0:02:31]} 16... Ra8 {[%clk
0:02:41.5]} 17. b3 {[%clk 0:02:11]} 17... Rxa1 {[%clk 0:02:40.1]} 18. Rxa1
{[%clk 0:02:11.4]} 18... cxb3 {[%clk 0:02:41.3]} 19. Qxb3 {[%clk 0:02:09.6]}
19... Nxe4 {[%clk 0:02:28.9]} 20. dxe5 {[%clk 0:02:06.3]} 20... Nxd2 {[%clk
0:02:18.8]} 21. Nxd2 {[%clk 0:02:04.9]} 21... Bxe5 {[%clk 0:01:52.6]} 22. Bxe5
{[%clk 0:02:04.3]} 22... Nxe5 {[%clk 0:01:45.5]} 23. Bxb5 {[%clk 0:01:57.2]}
23... Rb8 {[%clk 0:01:44.3]} 24. Qa3 {[%clk 0:01:40.9]} 24... Bxg2 {[%clk
0:01:29.9]} 25. Kxg2 {[%clk 0:01:39.4]} 25... Rxb5 {[%clk 0:01:30.1]} 26. Qa8+
{[%clk 0:01:34.2]} 26... Kg7 {[%clk 0:01:29.5]} 27. Ne4 {[%clk 0:01:29.7]} 27...
d5 {[%clk 0:00:45.1]} 28. Ra7 {[%clk 0:01:22.4]} 28... Qb8 {[%clk 0:00:42]} 29.
Qxb8 {[%clk 0:01:09.4]} 29... Rxb8 {[%clk 0:00:42.8]} 30. Nd6 {[%clk 0:01:09.4]}
30... Rd8 {[%clk 0:00:43.4]} 31. Nb5 {[%clk 0:01:06]} 31... Nc4 {[%clk
0:00:40.9]} 32. Rc7 {[%clk 0:01:00.7]} 32... h6 {[%clk 0:00:40]} 33. Nd4 {[%clk
0:01:01.8]} 33... Kf6 {[%clk 0:00:39]} 34. f4 {[%clk 0:00:57.8]} 34... Nd6
{[%clk 0:00:36.8]} 35. Rc6 {[%clk 0:00:53.7]} 35... Kg7 {[%clk 0:00:36.9]} 36.
Rc7 {[%clk 0:00:51.5]} 36... Kf8 {[%clk 0:00:37.9]} 37. Kf3 {[%clk 0:00:50.1]}
37... Rc8 {[%clk 0:00:30.5]} 38. Rxc8+ {[%clk 0:00:38.7]} 38... Nxc8 {[%clk
0:00:32.4]} 39. f5 {[%clk 0:00:32.8]} 39... g5 {[%clk 0:00:33]} 40. Nc6 {[%clk
0:00:23.6]} 40... Nd6 {[%clk 0:00:30.5]} 41. Nb4 {[%clk 0:00:22]} 41... Nxf5
{[%clk 0:00:29.2]} 42. Nxd5 {[%clk 0:00:23.1]} 42... Nd6 {[%clk 0:00:30.1]} 43.
Ke3 {[%clk 0:00:21.1]} 43... f5 {[%clk 0:00:30.7]} 44. Kd4 {[%clk 0:00:21.9]}
44... f4 {[%clk 0:00:31.8]} 45. c4 {[%clk 0:00:21.2]} 45... Kf7 {[%clk
0:00:29.5]} 46. c5 {[%clk 0:00:22.5]} 46... Nc8 {[%clk 0:00:29.8]} 47. Ke5
{[%clk 0:00:21.7]} 47... f3 {[%clk 0:00:30.5]} 48. Ne3 {[%clk 0:00:22.9]} 48...
f2 {[%clk 0:00:19.7]} 49. Ke4 {[%clk 0:00:23.1]} 49... Ke6 {[%clk 0:00:19.3]}
50. Kf3 {[%clk 0:00:24.4]} 50... f1=Q+ {[%clk 0:00:19]} 51. Nxf1 {[%clk
0:00:24.7]} 51... Kd5 {[%clk 0:00:20.9]} 52. Kg4 {[%clk 0:00:25]} 52... Ne7
{[%clk 0:00:21.5]} 53. Kh5 {[%clk 0:00:25.1]} 53... Nf5 {[%clk 0:00:16.2]} 54.
Kg6 {[%clk 0:00:19.9]} 54... Nh4+ {[%clk 0:00:15.6]} 55. Kxh6 {[%clk 0:00:20.3]}
55... Nf3 {[%clk 0:00:16.6]} 56. Kh5 {[%clk 0:00:19.2]} 56... Kxc5 {[%clk
0:00:17.4]} 57. Nh2 {[%clk 0:00:18.1]} 57... Ng1 {[%clk 0:00:15.9]} 58. Kxg5
{[%clk 0:00:19.2]} 58... Nxh3+ {[%clk 0:00:17]} 59. Kh4 {[%clk 0:00:20.1]}
1/2-1/2

[Event "*** Titled Tuesday Blitz"]
[Site "Chess.com"]
[Date "2019.04.02"]
[Round "10"]
[White "djogrodek1"]
[Black "RayRobson"]
[Result "0-1"]
[WhiteElo "2533"]
[BlackElo "2873"]
[TimeControl "180+2"]
[EndTime "16:19:41 PDT"]
[Termination "RayRobson won by checkmate"]

1. e4 {[%clk 0:02:57.8]} 1... e5 {[%clk 0:03:00.6]} 2. Nf3 {[%clk 0:02:49.7]}
2... Nc6 {[%clk 0:03:01.8]} 3. d4 {[%clk 0:02:33.6]} 3... exd4 {[%clk
0:03:02.3]} 4. Nxd4 {[%clk 0:02:29]} 4... Nf6 {[%clk 0:03:02.5]} 5. Nxc6 {[%clk
0:02:20.1]} 5... bxc6 {[%clk 0:03:04.4]} 6. e5 {[%clk 0:02:16.2]} 6... Qe7
{[%clk 0:03:05]} 7. Qe2 {[%clk 0:02:16.6]} 7... Nd5 {[%clk 0:03:05.7]} 8. c4
{[%clk 0:02:17.2]} 8... Nb6 {[%clk 0:03:04.8]} 9. Nc3 {[%clk 0:02:17.5]} 9...
Qe6 {[%clk 0:03:04.2]} 10. Bd2 {[%clk 0:02:13.3]} 10... g6 {[%clk 0:02:43]} 11.
O-O-O {[%clk 0:02:10.2]} 11... Bg7 {[%clk 0:02:38.8]} 12. f4 {[%clk 0:02:09.8]}
12... O-O {[%clk 0:02:31.4]} 13. h4 {[%clk 0:02:08.6]} 13... Ba6 {[%clk
0:02:13]} 14. b3 {[%clk 0:02:03.9]} 14... d5 {[%clk 0:02:11.4]} 15. exd6 {[%clk
0:01:59.9]} 15... Qxd6 {[%clk 0:02:10.1]} 16. Qf3 {[%clk 0:01:13.7]} 16... Rab8
{[%clk 0:01:51.8]} 17. c5 {[%clk 0:00:55.8]} 17... Qxc5 {[%clk 0:01:49.7]} 18.
Bxa6 {[%clk 0:00:56.6]} 18... Qa3+ {[%clk 0:01:43.8]} 19. Kb1 {[%clk 0:00:54.4]}
19... Qxa6 {[%clk 0:01:33.4]} 20. f5 {[%clk 0:00:49.7]} 20... Nc4 {[%clk
0:00:50.7]} 21. f6 {[%clk 0:00:48.5]} 21... Bh8 {[%clk 0:00:39.3]} 22. Bc1
{[%clk 0:00:45.1]} 22... Qa5 {[%clk 0:00:25.7]} 23. g4 {[%clk 0:00:34.7]} 23...
Ne5 {[%clk 0:00:24.1]} 24. Qh3 {[%clk 0:00:14.7]} 24... Bxf6 {[%clk 0:00:23.6]}
25. g5 {[%clk 0:00:15.5]} 25... Bg7 {[%clk 0:00:23.3]} 26. h5 {[%clk 0:00:16.8]}
26... Rfd8 {[%clk 0:00:08.9]} 27. hxg6 {[%clk 0:00:16.6]} 27... hxg6 {[%clk
0:00:10.8]} 28. Ne4 {[%clk 0:00:06.9]} 28... Rxd1 {[%clk 0:00:06.4]} 29. Rxd1
{[%clk 0:00:08.8]} 29... Nc4 {[%clk 0:00:06]} 30. Nf6+ {[%clk 0:00:08.3]} 30...
Bxf6 {[%clk 0:00:06.9]} 31. gxf6 {[%clk 0:00:10.2]} 31... Nd6 {[%clk 0:00:05.6]}
32. Rf1 {[%clk 0:00:04.8]} 32... Qh5 {[%clk 0:00:05.3]} 33. Qxh5 {[%clk
0:00:04.1]} 33... gxh5 {[%clk 0:00:06.5]} 34. Rg1+ {[%clk 0:00:03.5]} 34... Kf8
{[%clk 0:00:07]} 35. Rg5 {[%clk 0:00:04.5]} 35... Rb5 {[%clk 0:00:07.4]} 36. Rg7
{[%clk 0:00:05.6]} 36... Rf5 {[%clk 0:00:04.1]} 37. Bg5 {[%clk 0:00:06.1]} 37...
Ke8 {[%clk 0:00:02.7]} 38. Bh4 {[%clk 0:00:05.4]} 38... Kd7 {[%clk 0:00:03.6]}
39. Rh7 {[%clk 0:00:05.6]} 39... Ke6 {[%clk 0:00:05]} 40. a4 {[%clk 0:00:05.7]}
40... Ne4 {[%clk 0:00:04.9]} 41. Rh8 {[%clk 0:00:06.2]} 41... Nxf6 {[%clk
0:00:05.2]} 42. Ra8 {[%clk 0:00:06.7]} 42... Nd5 {[%clk 0:00:05.9]} 43. Rxa7
{[%clk 0:00:06.7]} 43... Rf4 {[%clk 0:00:06.9]} 44. Bd8 {[%clk 0:00:06.8]} 44...
h4 {[%clk 0:00:07.2]} 45. Bxc7 {[%clk 0:00:02.9]} 45... Rf1+ {[%clk 0:00:08.3]}
46. Kb2 {[%clk 0:00:03.4]} 46... h3 {[%clk 0:00:09.2]} 47. Bb8 {[%clk
0:00:03.9]} 47... h2 {[%clk 0:00:08.6]} 48. Bxh2 {[%clk 0:00:04.1]} 48... Rf2+
{[%clk 0:00:10.3]} 49. Ka3 {[%clk 0:00:05.6]} 49... Rxh2 {[%clk 0:00:12.2]} 50.
a5 {[%clk 0:00:07.2]} 50... f5 {[%clk 0:00:12.4]} 51. a6 {[%clk 0:00:08]} 51...
Rh8 {[%clk 0:00:13.4]} 52. Rb7 {[%clk 0:00:07.8]} 52... Ra8 {[%clk 0:00:13.7]}
53. a7 {[%clk 0:00:08.4]} 53... f4 {[%clk 0:00:15.2]} 54. Ka4 {[%clk 0:00:06.8]}
54... f3 {[%clk 0:00:16.7]} 55. Ka5 {[%clk 0:00:05.3]} 55... f2 {[%clk 0:00:18]}
56. Rb8 {[%clk 0:00:02.2]} 56... Rxa7# {[%clk 0:00:18.9]} 0-1

[Event "*** Titled Tuesday Blitz"]
[Site "Chess.com"]
[Date "2019.04.02"]
[Round "10"]
[White "norwaytoadog"]
[Black "KRASAVCHIK2002"]
[Result "1-0"]
[WhiteElo "2252"]
[BlackElo "2377"]
[TimeControl "180+2"]
[EndTime "16:20:49 PDT"]
[Termination "norwaytoadog won by checkmate"]

1. e4 {[%clk 0:03:01.9]} 1... c5 {[%clk 0:03:00.7]} 2. Nf3 {[%clk 0:03:02.8]}
2... d6 {[%clk 0:03:01.8]} 3. Bb5+ {[%clk 0:03:03.6]} 3... Nd7 {[%clk
0:02:59.9]} 4. d4 {[%clk 0:03:04.8]} 4... cxd4 {[%clk 0:03:00.4]} 5. Qxd4 {[%clk
0:03:06]} 5... a6 {[%clk 0:02:58.7]} 6. Bxd7+ {[%clk 0:03:06.7]} 6... Bxd7
{[%clk 0:03:00.1]} 7. c4 {[%clk 0:03:07.9]} 7... e5 {[%clk 0:02:43.6]} 8. Qd1
{[%clk 0:03:02.8]} 8... Be7 {[%clk 0:02:41.3]} 9. Nc3 {[%clk 0:03:03.4]} 9...
Be6 {[%clk 0:02:40.6]} 10. Nd5 {[%clk 0:03:00.9]} 10... Bxd5 {[%clk 0:02:36.6]}
11. cxd5 {[%clk 0:03:01.8]} 11... Nf6 {[%clk 0:02:34.2]} 12. Qd3 {[%clk
0:02:57.9]} 12... O-O {[%clk 0:02:33]} 13. O-O {[%clk 0:02:54.9]} 13... Rc8
{[%clk 0:02:29]} 14. Bd2 {[%clk 0:02:48.2]} 14... Qd7 {[%clk 0:02:27.4]} 15. h3
{[%clk 0:02:43.1]} 15... Bd8 {[%clk 0:02:25]} 16. Be3 {[%clk 0:02:36.2]} 16...
Qa4 {[%clk 0:02:10.8]} 17. Nd2 {[%clk 0:02:34.4]} 17... Ba5 {[%clk 0:01:51.2]}
18. f3 {[%clk 0:02:13.1]} 18... Bxd2 {[%clk 0:01:40.2]} 19. Bxd2 {[%clk
0:02:12.5]} 19... Qc4 {[%clk 0:01:26.1]} 20. Qxc4 {[%clk 0:02:09.7]} 20... Rxc4
{[%clk 0:01:27.7]} 21. Rfc1 {[%clk 0:02:04.7]} 21... Rfc8 {[%clk 0:01:28.4]} 22.
Rxc4 {[%clk 0:01:48]} 22... Rxc4 {[%clk 0:01:30.3]} 23. Rc1 {[%clk 0:01:48.9]}
23... Rxc1+ {[%clk 0:01:29.1]} 24. Bxc1 {[%clk 0:01:49.9]} 24... Nd7 {[%clk
0:01:15.9]} 25. b3 {[%clk 0:01:45.1]} 25... Kf8 {[%clk 0:01:16.1]} 26. Ba3
{[%clk 0:01:43.8]} 26... Ke7 {[%clk 0:01:16.8]} 27. Kf2 {[%clk 0:01:44.9]} 27...
f5 {[%clk 0:01:17.2]} 28. Ke3 {[%clk 0:01:42.7]} 28... Nf6 {[%clk 0:01:14.6]}
29. g4 {[%clk 0:01:38.3]} 29... fxe4 {[%clk 0:00:40.9]} 30. fxe4 {[%clk
0:01:38.3]} 30... Kd7 {[%clk 0:00:42]} 31. Bb4 {[%clk 0:01:32.3]} 31... Ne8
{[%clk 0:00:30.9]} 32. Ba5 {[%clk 0:01:29.4]} 32... Nf6 {[%clk 0:00:13.7]} 33.
a4 {[%clk 0:01:29]} 33... Ke7 {[%clk 0:00:14.6]} 34. Bb6 {[%clk 0:01:25.1]}
34... Nd7 {[%clk 0:00:15.4]} 35. Ba5 {[%clk 0:01:25.1]} 35... Nc5 {[%clk
0:00:14.9]} 36. Bb6 {[%clk 0:01:21.4]} 36... Nxb3 {[%clk 0:00:15.2]} 37. a5
{[%clk 0:01:19]} 37... Kd7 {[%clk 0:00:06.8]} 38. Kd3 {[%clk 0:01:17.2]} 38...
g5 {[%clk 0:00:05.3]} 39. Ke3 {[%clk 0:01:09.5]} 39... Nc5 {[%clk 0:00:04.3]}
40. Kf3 {[%clk 0:01:08.8]} 40... Na4 {[%clk 0:00:03]} 41. Be3 {[%clk 0:01:09.2]}
41... h6 {[%clk 0:00:03.6]} 42. h4 {[%clk 0:01:09]} 42... gxh4 {[%clk 0:00:05]}
43. Kg2 {[%clk 0:01:10.1]} 43... Nc3 {[%clk 0:00:05.4]} 44. Bxh6 {[%clk
0:01:08]} 44... Nxe4 {[%clk 0:00:06.2]} 45. Be3 {[%clk 0:01:06.9]} 45... Nf6
{[%clk 0:00:06.7]} 46. Kh3 {[%clk 0:01:05.3]} 46... Nxd5 {[%clk 0:00:07.3]} 47.
Bd2 {[%clk 0:01:06.1]} 47... b5 {[%clk 0:00:07.6]} 48. axb6 {[%clk 0:01:06.5]}
48... Nxb6 {[%clk 0:00:08.4]} 49. Kxh4 {[%clk 0:01:07.4]} 49... Ke6 {[%clk
0:00:09.7]} 50. Kh5 {[%clk 0:01:06.7]} 50... Kf7 {[%clk 0:00:08.2]} 51. Kh6
{[%clk 0:01:06.1]} 51... Nd5 {[%clk 0:00:08.4]} 52. g5 {[%clk 0:01:04.9]} 52...
Ne7 {[%clk 0:00:09.3]} 53. Bb4 {[%clk 0:01:02.8]} 53... e4 {[%clk 0:00:06.8]}
54. Bxd6 {[%clk 0:01:02.7]} 54... Nf5+ {[%clk 0:00:07.8]} 55. Kh7 {[%clk
0:01:03.9]} 55... Nxd6 {[%clk 0:00:09.2]} 56. g6+ {[%clk 0:01:05.3]} 56... Ke6
{[%clk 0:00:09.6]} 57. g7 {[%clk 0:01:05.6]} 57... Nf5 {[%clk 0:00:05.7]} 58.
g8=Q+ {[%clk 0:01:06.2]} 58... Ke5 {[%clk 0:00:07.1]} 59. Qe8+ {[%clk 0:01:06]}
59... Kf4 {[%clk 0:00:07.9]} 60. Kg6 {[%clk 0:01:05.7]} 60... Ng3 {[%clk
0:00:06.7]} 61. Qf7+ {[%clk 0:01:04.4]} 61... Ke3 {[%clk 0:00:07.6]} 62. Qb3+
{[%clk 0:01:04.6]} 62... Kf2 {[%clk 0:00:07.5]} 63. Kg5 {[%clk 0:01:05.7]} 63...
e3 {[%clk 0:00:08.3]} 64. Kg4 {[%clk 0:01:05.1]} 64... Nf1 {[%clk 0:00:08.3]}
65. Qf7+ {[%clk 0:01:04.4]} 65... Ke2 {[%clk 0:00:06.4]} 66. Qc4+ {[%clk
0:01:05.1]} 66... Kf2 {[%clk 0:00:07.2]} 67. Qf4+ {[%clk 0:01:02.9]} 67... Ke2
{[%clk 0:00:07.4]} 68. Qf3+ {[%clk 0:01:03.2]} 68... Kd2 {[%clk 0:00:07.1]} 69.
Qxf1 {[%clk 0:01:02.7]} 69... e2 {[%clk 0:00:08.3]} 70. Qf2 {[%clk 0:01:02.7]}
70... Kd1 {[%clk 0:00:09.1]} 71. Qf3 {[%clk 0:01:04]} 71... Kd2 {[%clk
0:00:09.4]} 72. Qd5+ {[%clk 0:01:03.7]} 72... Ke3 {[%clk 0:00:08.3]} 73. Qe5+
{[%clk 0:01:03.8]} 73... Kf2 {[%clk 0:00:08]} 74. Qd4+ {[%clk 0:01:04.5]} 74...
Kf1 {[%clk 0:00:05.5]} 75. Qd3 {[%clk 0:01:04.9]} 75... Kf2 {[%clk 0:00:06.3]}
76. Qd2 {[%clk 0:00:59.2]} 76... Kf1 {[%clk 0:00:03.8]} 77. Kf3 {[%clk 0:00:56]}
77... e1=Q {[%clk 0:00:03.3]} 78. Qg2# {[%clk 0:00:56.5]} 1-0